[Event "44th Chess Olympiad Open 2022"]
[Site "Chennai"]
[Date "2022.08.02"]
[Round "5.76"]
[White "Nor, Mohamed Ahmed"]
[Black "da Conceicao, Marcos"]
[Result "1-0"]
[ECO "B90"]
[WhiteElo "1907"]
[BlackElo "1713"]
[Annotator "TA"]
[PlyCount "89"]
[EventDate "2022.07.29"]
[EventType "team-tourn"]
[EventCountry "IND"]
[SourceTitle "playchess.com"]
[Source "ChessBase"]
[SourceQuality "1"]
[WhiteTeam "Somalia"]
[BlackTeam "TLS"]
[WhiteTeamCountry "SOM"]
[TimeControl "40/5400+30:1800+30"]

{[%evp 18,89,10,-16,19,14,22,0,35,35,33,-114,-134,-145,-102,-97,-14,-36,-25,-40,-27,-29,-29,-27,-27,-45,-39,-25,-12,-55,-13,-9,0,0,22,-150,0,-10,-8,-10,10,-89,25,-44,-16,-13,106,-21,0,0,220,236,294,280,327,325,325,325,572,174,351,145,209,45,76,76,76,72,478,72,2316,2142,29990,29991]} 1. e4 {[%emt 0:00:04] ChessBase II} c5 {[%emt 0:03:05]} 2. Nf3 {[%emt 0:00:16]} Nc6 {[%emt 0:00:45]} 3. d4 {[%emt 0:00:26]} cxd4 {[%emt 0:00:53]} 4. Nxd4 {[%emt 0:00:28]} e5 {[%emt 0:01:05]} 5. Nf3 {[%emt 0:01:08]} Be7 {[%emt 0:01:17]} 6. Bc4 {[%emt 0:00:21]} Nf6 {[%emt 0:00:26]} 7. Nc3 {[%emt 0:00:17]} O-O {[%emt 0:00:36]} 8. O-O {[%emt 0:00:00]} d6 {[%emt 0:02:12]} 9. h3 {[%emt 0:00:40]} a6 {[%emt 0:01:50]} 10. a4 {[%emt 0:00:42]} Bd7 {[%emt 0:01:44] [#] B90: Sicilian Najdorf: Unusual White 6th moves, 6 Be3 Ng4 and 6 Be3 e5.} (10... Be6 $5 {[%cal Re6c4]} 11. Bd5 Rc8 $11) 11. Re1 $146 {[%emt 0:00:33]} ({Predecessor:} 11. Be3 Rc8 12. b3 Na5 13. Be2 Rxc3 14. Qd2 Rc8 15. Rad1 Nxe4 16. Qd3 Nc3 17. Rd2 e4 18. Qd4 Nxe2+ 19. Rxe2 exf3 20. gxf3 Bxh3 {0-1 (27) Adler,N-Harris,B Sydney 2002 EXT 2003 [ChessBase II]}) 11... Rc8 {[%emt 0:00:45]} 12. Bg5 {[%emt 0:01:22]} h6 {[%emt 0:02:53] The position is equal.} 13. Bxf6 {[%emt 0:00:35]} Bxf6 {[%emt 0:00:39]} 14. Qxd6 {[%emt 0:00:31]} (14. Nd5 $14 {keeps the upper hand.}) 14... Nd4 $17 {[%emt 0:01:13]} 15. Bb3 {[%emt 0:06:20]} Nxf3+ {[%emt 0:00:22]} 16. gxf3 {[%emt 0:00:19]} Bxh3 {[%emt 0:01:07]} (16... Rc6 $1 $17 {[%cal Rc6d6]} 17. Qd3 Bh4) 17. Qxd8 {[%emt 0:00:01]} Rfxd8 {[%emt 0:04:19]} 18. Rad1 {[%emt 0:00:02]} Be6 {[%emt 0:08:18]} 19. Rxd8+ {[%emt 0:05:49]} Rxd8 {[%emt 0:00:18]} 20. Nd5 {[%emt 0:00:50]} Bg5 {[%emt 0:00:57]} 21. c4 {[%emt 0:01:39][%cal Bc2c4,Bc4c5][%mdl 32]} Kh7 {[%emt 0:01:45]} 22. Bc2 {[%emt 0:02:08]} h5 {[%emt 0:01:32]} 23. Rd1 {[%emt 0:01:26]} Kh6 {[%emt 0:01:19]} 24. b4 {[%emt 0:00:45]} Rd6 {[%emt 0:04:48]} 25. c5 {[%emt 0:01:53]} Rc6 {[%emt 0:00:18][%cal Oa6a5]} 26. Ne3 $2 {[%emt 0:03:16]} (26. a5 $11) 26... Rc8 {[%emt 0:08:38]} (26... Bxe3 $17 27. fxe3 a5) 27. Rd6 {[%emt 0:00:57]} Bxe3 {[%emt 0:03:50]} 28. fxe3 $11 {[%emt 0:00:32][%mdl 4096] Endgame KRB-KRB} Kg5 {[%emt 0:01:00][%cal Oa6a5]} (28... a5 $5 {[%cal Ra5b4]}) 29. Kh2 {[%emt 0:02:51]} (29. a5 $11 {remains equal.}) 29... Kh4 {[%emt 0:04:53]} ({Black should try} 29... a5 $1 $17 {[%cal Ra5b4]} 30. c6 bxc6 31. bxa5 Kf6) 30. f4 {[%emt 0:03:37]} (30. a5 $1 $11) 30... exf4 {[%emt 0:00:18]} 31. exf4 {[%emt 0:00:23]} g6 {[%emt 0:01:29]} (31... a5 $11 32. c6 (32. f5 Bc4 $15) 32... bxc6) 32. Bd1 {[%emt 0:01:06]} ({Only move:} 32. f5 $16 Ba2 33. fxg6) 32... Bg4 {[%emt 0:02:59]} 33. Bb3 {[%emt 0:00:58]} Rf8 $2 {[%emt 0:01:03]} (33... a5 $11 34. c6 bxc6 35. bxa5 Ra8) 34. Bd5 $18 {[%emt 0:00:41]} Bc8 {[%emt 0:03:54]} 35. b5 {[%emt 0:03:56]} axb5 {[%emt 0:00:25]} 36. axb5 {[%emt 0:00:24]} Kg4 {[%emt 0:00:14] [#]} 37. Rf6 {[%emt 0:00:25] And now c6 would win.} g5 $2 {[%emt 0:01:02]} (37... h4 38. Bxf7 Rd8) 38. Bxf7 $2 {[%emt 0:01:41]} (38. fxg5 {Strongly threatening g6.} Kxg5 39. Rxf7) 38... Kh4 $2 {[%emt 0:02:34]} (38... Rd8) 39. fxg5 {[%emt 0:03:07]} (39. e5 $18 {has better winning chances.}) 39... Kxg5 $16 {[%emt 0:01:05]} 40. e5 {[%emt 0:00:24]} (40. Rg6+ $18 Kf4 41. Bd5) 40... Bd7 {[%emt 0:01:31]} 41. b6 {[%emt 0:34:05] White is more active.} Rc8 {[%emt 0:32:59]} 42. Rg6+ {[%emt 0:02:46]} Kf5 $2 {[%emt 0:00:50][%mdl 8192] [#]} (42... Kf4 $16) 43. e6 $2 {[%emt 0:00:39]} (43. Rd6 $1 $18 {[%cal Rd6d7]}) 43... Be8 {[%emt 0:06:51][%mdl 8192]} (43... Bb5 $16) 44. Rg8 $18 {[%emt 0:01:27]} Bxf7 {[%emt 0:01:23]} 45. exf7 {[%emt 0:00:43] Weighted Error Value: White=0.81/Black=0.96} 1-0

[Event "44th Chess Olympiad Open 2022"]
[Site "Chennai"]
[Date "2022.08.02"]
[Round "5.77"]
[White "Sharikhan, Shawal"]
[Black "Mambe, Lobognon Anderson Ol"]
[Result "1/2-1/2"]
[ECO "C11"]
[WhiteElo "1789"]
[BlackElo "1921"]
[Annotator "TA"]
[PlyCount "173"]
[EventDate "2022.07.29"]
[EventType "team-tourn"]
[EventCountry "IND"]
[SourceTitle "playchess.com"]
[Source "ChessBase"]
[SourceQuality "1"]
[WhiteTeam "Brunei"]
[BlackTeam "CIV"]
[WhiteTeamCountry "BRN"]
[TimeControl "40/5400+30:1800+30"]

{[%evp 20,173,29,19,19,25,34,12,16,15,17,30,54,67,87,91,112,75,128,122,129,119,129,93,114,127,108,105,115,-23,-32,-31,-32,-92,0,0,0,-50,0,0,202,202,202,202,202,202,202,202,202,202,202,202,217,202,202,195,195,192,178,147,162,162,193,120,256,0,169,164,202,0,165,120,120,120,272,272,779,695,1016,1057,1017,1017,947,886,857,811,773,732,686,310,545,277,343,310,295,295,558,395,683,558,558,558,472,467,467,467,461,406,398,277,475,277,277,277,277,141,277,141,141,141,277,277,277,277,277,277,190,175,277,275,275,270,270,233,156,133,237,0,0,0,0,0,226,120,120,120,117,84,112,84,86,86,86,87,94,94]} 1. e4 {[%emt 0:00:10]} e6 {[%emt 0:00:17]} 2. d4 {[%emt 0:00:32]} d5 {[%emt 0:00:14]} 3. Nc3 {[%emt 0:00:16]} Nf6 {[%emt 0:00:14]} 4. e5 {[%emt 0:00:37]} Nfd7 {[%emt 0:00:14]} 5. f4 {[%emt 0:00:08]} c5 {[%emt 0:00:34]} 6. Nf3 {[%emt 0:00:37]} Qb6 {[%emt 0:00:34]} 7. Be3 {[%emt 0:02:00]} a6 {[%emt 0:00:49]} 8. Na4 {[%emt 0:01:02]} Qa5+ {[%emt 0:00:44]} 9. c3 {[%emt 0:00:26]} cxd4 {[%emt 0:00:52]} 10. b4 {[%emt 0:01:29]} Qc7 {[%emt 0:00:30]} 11. Qxd4 {[%emt 0:00:41]} (11. Nxd4 b5 12. Nc5 Bxc5 13. bxc5 Nxc5 $17) 11... Nc6 {[%emt 0:01:55] C11: French: Classical System: 4 e5 and 4 Bg5 dxe4.} 12. Qd2 {[%emt 0:00:15]} Be7 {[%emt 0:01:19]} 13. Be2 {[%emt 0:01:34]} O-O {[%emt 0:01:45] The position is equal.} 14. O-O {[%emt 0:00:53]} b5 {[%emt 0:02:04]} 15. Nb2 {[%emt 0:00:59] [#]} Bb7 $146 {[%emt 0:00:22]} ({Predecessor:} 15... f6 16. a4 Rb8 17. axb5 axb5 18. Nd4 Nxd4 19. cxd4 Nb6 20. Nd3 Nc4 21. Qc3 f5 {½-½ (39) Peschlow,P (2321)-Mundorf,J (2248) Germany 2015}) 16. a4 {[%emt 0:02:51]} bxa4 {[%emt 0:00:20]} 17. Nxa4 {[%emt 0:01:02]} ({Much weaker is} 17. Rxa4 f6 $14) 17... Rac8 {[%emt 0:01:01]} 18. Kh1 {[%emt 0:03:55]} Rfd8 {[%emt 0:01:22]} (18... f6 $142) 19. Nd4 {[%emt 0:04:04]} Nxd4 {[%emt 0:03:32]} 20. Bxd4 {[%emt 0:00:59]} Re8 {[%emt 0:01:39]} 21. h3 {[%emt 0:05:39]} f6 {[%emt 0:00:58][%cal Rf6e5]} 22. Qe3 {[%emt 0:03:14] 0x0.0020b3cfa493dp-1022s more active pieces.} fxe5 {[%emt 0:00:56]} 23. fxe5 {[%emt 0:01:19][%cal Oh3h4]} Rf8 {[%emt 0:00:20]} 24. Nb6 {[%emt 0:03:14]} (24. Rxf8+ $16 Rxf8 25. Nb2) 24... Nxb6 $11 {[%emt 0:01:01]} 25. Bxb6 {[%emt 0:00:10]} Qxc3 {[%emt 0:00:17]} 26. Qxc3 {[%emt 0:06:09]} ({White should try} 26. Bg4 $1 $15 Qc6 27. Qd4) 26... Rxf1+ {[%emt 0:01:30]} (26... Rxc3 $17 27. Rfb1 d4 28. Bxa6 (28. Bg4 d3 $17) 28... Be4 29. Bxd4 Rc2) 27. Bxf1 {[%emt 0:18:30]} Rxc3 {[%emt 0:03:15]} 28. Bd4 {[%emt 0:03:55]} ({Better is} 28. b5 $1 $11) 28... Rb3 {[%emt 0:15:12]} (28... Bxb4 $2 29. Bxc3 Bxc3 30. Rb1 $18) (28... Rc7 $15 29. b5 axb5 30. Bxb5 Bc8) 29. b5 $1 {[%emt 0:13:04]} Ra3 {[%emt 0:01:28]} (29... axb5 $2 30. Ra7 $16) (29... Rb4 $11 {and Black has nothing to worry.} 30. Bc3 Rb3) 30. Rxa3 $18 {[%emt 0:00:51][%mdl 64] Remove Defender} ({Don't take} 30. bxa6 $6 Rxa1 31. Bxa1 Bc6 $16) 30... Bxa3 {[%emt 0:00:03]} 31. bxa6 {[%emt 0:00:20][%mdl 4096] Endgame KBB-KBB} Ba8 {[%emt 0:00:24]} 32. Kg1 {[%emt 0:03:43]} Kf7 {[%emt 0:01:44]} 33. Bd3 {[%emt 0:01:05]} g6 {[%emt 0:00:16]} 34. Kf2 {[%emt 0:00:26]} Bc6 {[%emt 0:01:30]} 35. a7 {[%emt 0:01:15]} Ke7 {[%emt 0:00:34]} 36. Ke1 {[%emt 0:00:43]} Kd8 {[%emt 0:00:46]} 37. Kd2 {[%emt 0:01:30]} Bb4+ {[%emt 0:00:12]} 38. Kc2 {[%emt 0:01:07]} Ba5 {[%emt 0:01:13]} 39. g4 {[%emt 0:03:26]} Kc7 {[%emt 0:00:13] [#]} 40. Bb5 $1 {[%emt 0:03:16][%mdl 512] Threatening mate with Bxc6.} Ba8 {[%emt 0:00:39]} (40... Bb7 41. g5) 41. Be8 {[%emt 0:31:54]} (41. h4 $18) 41... Kd8 {[%emt 0:31:05]} (41... g5 $16 42. Be3 h6) 42. Bb5 {[%emt 0:03:34]} Kc7 {[%emt 0:00:09]} 43. Kd3 {[%emt 0:01:36]} Bb4 {[%emt 0:00:38]} 44. Kc2 $2 {[%emt 0:00:26]} (44. Be3 $18) 44... Be1 $2 {[%emt 0:01:50]} (44... Ba5 $1 $11) 45. Kb3 {[%emt 0:00:13]} Bd2 {[%emt 0:00:54]} 46. Ka4 {[%emt 0:01:04]} Bf4 $2 {[%emt 0:02:32]} (46... g5 $16 {keeps fighting.} 47. Ka3 Bb7) 47. Be8 $1 {[%emt 0:02:19]} Bd2 $2 {[%emt 0:00:00]} (47... Kd8) 48. Kb5 {[%emt 0:01:32] aiming for Bb6+.} Be1 {[%emt 0:00:00]} 49. Bb6+ {[%emt 0:01:53]} Kc8 {[%emt 0:00:00]} 50. Bc6 {[%emt 0:00:45]} Bb7 {[%emt 0:00:00]} 51. a8=Q+ {[%emt 0:00:46]} Bxa8 {[%emt 0:00:25]} 52. Bxa8 {[%emt 0:00:16] Strongly threatening Kc6.} Bc3 {[%emt 0:00:11]} 53. Bc6 {[%emt 0:02:24]} Bxe5 {[%emt 0:00:25]} 54. Kb4 {[%emt 0:00:00]} (54. Be8 $142 Bc7 55. Bxc7 Kxc7 56. Kc5) 54... Bf6 $2 {[%emt 0:00:00]} (54... Bd6+ 55. Kb5 Be7) 55. Kb3 {[%emt 0:00:00] Kb4 is the strong threat.} Bg7 {[%emt 0:00:00]} 56. Kc2 {[%emt 0:00:00]} Bf6 {[%emt 0:00:00]} 57. Kd3 {[%emt 0:00:00]} Bg7 $2 {[%emt 0:00:00]} (57... h5 58. Be8 hxg4) 58. Bd4 {[%emt 0:00:00]} Bf8 {[%emt 0:00:00]} (58... Bh6 59. Bf6 Bc1) 59. Bf6 {[%emt 0:00:00]} Ba3 {[%emt 0:00:00]} 60. Be8 {[%emt 0:00:00]} Kc7 {[%emt 0:00:00]} 61. Be5+ {[%emt 0:00:00]} Kd8 {[%emt 0:00:00]} 62. Bf7 {[%emt 0:00:00]} Ke7 {[%emt 0:00:00]} 63. Bg8 {[%emt 0:00:00]} h6 {[%emt 0:00:00]} 64. h4 {[%emt 0:00:00]} Bc1 $2 {[%emt 0:00:00]} (64... Bd6) 65. h5 {[%emt 0:00:00]} (65. Ke2 $142 Kd7 66. Bh7) 65... gxh5 {[%emt 0:00:00]} 66. gxh5 {[%emt 0:00:00]} Bg5 {[%emt 0:00:00]} 67. Ke2 {[%emt 0:00:00]} (67. Bh7 $18) 67... Bc1 {[%emt 0:00:00]} (67... Bf6 $16 {is a better defense.}) 68. Kf2 {[%emt 0:00:00]} (68. Bh7 $1 $18) 68... Bg5 $16 {[%emt 0:00:00]} 69. Kf3 {[%emt 0:00:00]} Bd2 {[%emt 0:03:15]} (69... Bf6 $16) 70. Bh7 $18 {[%emt 0:00:36]} Kf7 {[%emt 0:00:00]} 71. Bg6+ {[%emt 0:00:00]} Ke7 {[%emt 0:00:00]} 72. Ke2 {[%emt 0:00:00]} Bg5 {[%emt 0:00:00]} 73. Kd3 {[%emt 0:00:00]} Bc1 {[%emt 0:00:00]} (73... Bh4 $142 74. Bd4 Bg5 75. Bc5+ Kd7) 74. Kc2 {[%emt 0:00:00]} Be3 {[%emt 0:00:00]} 75. Kb3 {[%emt 0:00:00]} Bg5 {[%emt 0:00:00]} 76. Ka4 {[%emt 0:00:00]} Bf6 {[%emt 0:00:00]} 77. Bb8 {[%emt 0:00:00]} e5 {[%emt 0:00:00] [#]} (77... Bg5 $16 {was necessary.} 78. Be5 Bf6) 78. Bf5 $2 {[%emt 0:00:00]} (78. Kb5 $1 $18) 78... Bg7 $11 {[%emt 0:00:00]} 79. Kb5 {[%emt 0:00:00] Black must now prevent Kc6.} Kf6 {[%emt 0:00:00]} 80. Bg6 {[%emt 0:00:00] Threatens to win with Kc6.} Ke6 $2 {[%emt 0:00:54]} (80... Kg5 $1 $11 {and Black is okay.}) 81. Kb4 {[%emt 0:01:41]} (81. Bc7 $18) 81... Bf6 {[%emt 0:00:00] White is better.} 82. Kb3 {[%emt 0:00:00]} Bg5 {[%emt 0:00:00]} 83. Kc2 {[%emt 0:00:00]} e4 {[%emt 0:00:00]} 84. Bg3 {[%emt 0:01:21]} Be3 {[%emt 0:00:00] [#]} 85. Kd1 $1 {[%emt 0:00:17]} Kf6 {[%emt 0:00:00]} 86. Ke2 {[%emt 0:00:13]} Bg5 {[%emt 0:00:00]} 87. Bb8 {[%emt 0:02:35] Weighted Error Value: White=0.46/Black=0.47} 1/2-1/2

[Event "44th Chess Olympiad Open 2022"]
[Site "Chennai"]
[Date "2022.08.02"]
[Round "5.78"]
[White "Arnold Smith"]
[Black "Bongo Ngombele, Tary"]
[Result "1-0"]
[ECO "C50"]
[WhiteElo "1931"]
[BlackElo "1688"]
[Annotator "TA"]
[PlyCount "83"]
[EventDate "2022.07.29"]
[EventType "team-tourn"]
[EventCountry "IND"]
[SourceTitle "playchess.com"]
[Source "ChessBase"]
[SourceQuality "1"]
[WhiteTeam "Liberia"]
[BlackTeam "Gabun"]
[WhiteTeamCountry "LBR"]
[BlackTeamCountry "GAB"]
[TimeControl "40/5400+30:1800+30"]

{[%evp 13,82,41,39,13,16,27,16,12,35,-8,36,12,40,33,59,28,90,95,143,145,236,227,222,157,147,139,131,95,87,88,139,136,358,356,338,91,79,89,146,147,148,148,148,148,147,133,225,154,135,154,152,140,139,139,134,135,124,131,129,75,129,127,133,112,247,243,337,333,593,522,29999]} 1. e4 {[%emt 0:00:11]} e5 {[%emt 0:00:07]} 2. Nf3 {[%emt 0:00:23]} Nc6 {[%emt 0:01:41]} 3. d4 {[%emt 0:01:31]} exd4 {[%emt 0:00:00]} 4. Bc4 {[%emt 0:00:21]} Be7 {[%emt 0:00:42]} 5. Nxd4 {[%emt 0:02:17]} Nf6 {[%emt 0:00:48]} 6. Nxc6 {[%emt 0:01:58]} dxc6 {[%emt 0:00:27] 6...dxc6 is better than 6...bxc6.} 7. Qxd8+ {[%emt 0:01:40]} Bxd8 {[%emt 0:00:15]} 8. O-O {[%emt 0:00:48] C50: Hungarian Defence and Giuoco Pianissimo.} O-O {[%emt 0:00:24]} 9. Re1 {[%emt 0:01:01]} Re8 {[%emt 0:00:26]} 10. f3 {[%emt 0:01:20] The position is equal.} b5 {[%emt 0:00:55] [#]} 11. Bb3 $146 {[%emt 0:00:39]} ({Predecessor:} 11. Bf1 Be7 12. Be3 Bd7 13. Nd2 Be6 14. Nb3 a6 15. c3 Bf8 16. Kf2 Nd7 17. Nd4 {1-0 (37) Damm,K (2241)-Kristensen,J (2264) Esbjerg 2004}) 11... Be7 {[%emt 0:01:06]} 12. Nc3 {[%emt 0:01:18][%cal Bb1c3,Bc3a4,Ba4c5][%mdl 32]} Bc5+ {[%emt 0:00:49]} 13. Be3 {[%emt 0:00:51]} Bb6 {[%emt 0:01:10]} 14. Rad1 {[%emt 0:00:47]} b4 {[%emt 0:00:27]} (14... Nd7 $11 {remains equal.}) 15. Na4 $16 {[%emt 0:01:30]} Bxe3+ {[%emt 0:00:29]} ({Black should play} 15... Nd7) 16. Rxe3 {[%emt 0:00:34]} Ba6 {[%emt 0:03:08]} (16... Nd7 $16 {keeps fighting.} 17. Red3 Ne5) 17. Nc5 $18 {[%emt 0:01:55]} Bb5 {[%emt 0:00:23]} 18. e5 {[%emt 0:00:34]} a5 {[%emt 0:07:12]} 19. Kf2 {[%emt 0:03:12] 0x0.002363f5f485dp-1022s more active pieces.} Nd5 {[%emt 0:02:20]} 20. Bxd5 {[%emt 0:00:41]} cxd5 {[%emt 0:00:14]} 21. Rxd5 {[%emt 0:00:03]} Bc4 {[%emt 0:02:39]} (21... Red8 $142 22. Rxd8+ Rxd8) 22. Rd1 {[%emt 0:02:09]} ({Don't do} 22. Rd7 Bxa2 23. Re4 (23. Rxc7 Rec8 $11) 23... Rad8 $14) 22... Bxa2 $2 {[%emt 0:12:53]} (22... Red8 $16 {might work better.} 23. Ree1 Kf8) 23. b3 $1 {[%emt 0:04:19]} Rad8 {[%emt 0:01:11]} 24. Nd3 $2 {[%emt 0:03:11]} (24. Ree1 $18) 24... a4 $16 {[%emt 0:02:57]} 25. bxa4 {[%emt 0:00:10]} Ra8 {[%emt 0:11:51]} (25... c5 $142) 26. Nxb4 {[%emt 0:01:34]} Rxa4 {[%emt 0:00:09]} 27. Nxa2 {[%emt 0:00:16]} Rxa2 {[%emt 0:00:08][%mdl 4096] Endgame KRR-KRR} 28. Rc3 {[%emt 0:00:06]} Ra7 {[%emt 0:10:22]} 29. Rd7 {[%emt 0:00:29]} Rc8 {[%emt 0:01:24]} (29... Kf8 $16 30. f4 (30. Rdxc7 Rxc7 31. Rxc7 Rxe5 $16) 30... Re7) 30. e6 {[%emt 0:04:29]} fxe6 {[%emt 0:00:23]} 31. Rc6 {[%emt 0:00:04]} e5 {[%emt 0:11:18]} 32. Re6 {[%emt 0:00:28] And now Ree7 would win.} Ra2 {[%emt 0:01:04]} 33. Ree7 {[%emt 0:00:54]} ({But not} 33. Rxe5 Rxc2+ 34. Kg3 Rc6 $16) 33... Rxc2+ {[%emt 0:00:25]} 34. Kg3 {[%emt 0:00:00]} Kh8 {[%emt 0:01:59]} 35. Rxg7 {[%emt 0:02:25]} Rg8 {[%emt 0:00:08]} 36. Rxg8+ {[%emt 0:00:38]} Kxg8 {[%emt 0:00:08] KR-KR} 37. Re7 {[%emt 0:00:04]} Rc5 {[%emt 0:00:19]} 38. Kg4 {[%emt 0:00:23]} c6 {[%emt 0:06:13]} (38... h5+ $16 39. Kxh5 Kf8) 39. h4 $1 $18 {[%emt 0:00:44]} Rc4+ {[%emt 0:07:04] [#]} 40. Kg5 $1 {[%emt 0:02:03]} Rc2 $2 {[%emt 0:02:50] [#]} (40... Rd4 41. Rxe5 Rd7) 41. Kf6 $1 {[%emt 0:31:55][%cal Re7e8]} Rxg2 {[%emt 0:31:00]} 42. Re8# {[%emt 0:00:27] Weighted Error Value: White=0.23 (precise) /Black=0.60} 1-0

[Event "44th Chess Olympiad Open 2022"]
[Site "Chennai"]
[Date "2022.08.02"]
[Round "5.78"]
[White "Bobby Ballah"]
[Black "Koumba, Mounguen Jose Evrard"]
[Result "1-0"]
[ECO "A01"]
[WhiteElo "1916"]
[BlackElo "1942"]
[Annotator "TA"]
[PlyCount "57"]
[EventDate "2022.07.29"]
[EventType "team-tourn"]
[EventCountry "IND"]
[SourceTitle "playchess.com"]
[Source "ChessBase"]
[SourceQuality "1"]
[WhiteTeam "Liberia"]
[BlackTeam "Gabun"]
[WhiteTeamCountry "LBR"]
[BlackTeamCountry "GAB"]
[TimeControl "40/5400+30:1800+30"]

{[%evp 9,57,-85,-46,-46,-35,-42,-27,-60,-48,-47,-44,-60,-61,-91,-27,-160,-17,-97,53,14,53,0,23,-427,-432,-397,-357,-1061,-1079,-1241,-980,-959,0,13,28,0,54,64,169,170,149,135,335,116,315,322,29997,29998,29998,29999]} 1. b3 {[%emt 0:00:37]} e5 {[%emt 0:00:27]} 2. Bb2 {[%emt 0:00:06]} Nc6 {[%emt 0:00:08]} 3. Nc3 {[%emt 0:00:06]} d5 {[%emt 0:00:40]} 4. e3 {[%emt 0:00:10]} Nf6 {[%emt 0:00:46]} 5. Qe2 {[%emt 0:01:03] [#]} Be6 $146 {[%emt 0:06:04]} ({Predecessor:} 5... Bf5 6. O-O-O a6 7. f3 Bd6 8. g4 Be6 9. h4 Qe7 10. h5 Ba3 11. g5 Bxb2+ 12. Kxb2 {½-½ (69) Redzepovic,S-Kojic,S Andrijevica 2012}) 6. O-O-O {[%emt 0:00:55] A01: Nimzowitsch-Larsen Opening.} ({Reject} 6. Qb5 a6 7. Qe2 (7. Qxb7 $2 Na5 $19) 7... Bc5 $17) 6... a6 {[%emt 0:00:21]} 7. Nf3 {[%emt 0:05:18]} e4 {[%emt 0:07:40]} 8. Ng1 {[%emt 0:05:22] Black has an edge.} Bd6 {[%emt 0:01:03]} 9. f3 {[%emt 0:02:30]} Qe7 {[%emt 0:00:22]} 10. Kb1 {[%emt 0:00:30]} Ba3 {[%emt 0:02:54]} 11. Ba1 {[%emt 0:00:07]} O-O {[%emt 0:02:43]} ({Better is} 11... a5 $17 {[%cal Oa5a4]} 12. Nh3 a4) 12. h3 {[%emt 0:00:44]} (12. Nh3 $11) 12... Qb4 {[%emt 0:00:50]} (12... a5 $17 {[%cal Oa5a4] White must now prevent ...a4!} 13. fxe4 Nxe4) 13. g4 {[%emt 0:03:24]} (13. Qe1 $11 {remains equal.}) 13... d4 {[%emt 0:10:58]} (13... Rfd8 $17) 14. Nxe4 $14 {[%emt 0:09:50]} Nxe4 {[%emt 0:00:45]} 15. fxe4 {[%emt 0:00:30] Strongly threatening Nf3.} Rfd8 $1 {[%emt 0:00:28][%cal Od4d3] Hoping for ...d3!} 16. Nf3 $2 {[%emt 0:01:05][%mdl 8192]} (16. exd4 $11 Nxd4 17. Qe3) 16... d3 $1 $19 {[%emt 0:00:45]} 17. Qf2 {[%emt 0:09:46]} Na5 {[%emt 0:07:57]} 18. Bxd3 {[%emt 0:25:14] [#]} (18. Rc1 Bxc1 19. Bxd3) 18... Rxd3 $1 {[%emt 0:00:18][%mdl 512]} 19. Nd4 {[%emt 0:00:09] [#]} (19. c3 Qb5) 19... Nxb3 $1 {[%emt 0:02:05][%mdl 512]} 20. cxb3 {[%emt 0:06:15] [#]} c5 $2 {[%emt 0:17:21]} ({Black should try} 20... Bxb3 $1 $19 {[%mdl 512]} 21. Bc3 Rxc3 22. dxc3 Bc2+ 23. Kxc2 Qb2+ 24. Kd3 Qxf2) 21. Bc3 $11 {[%emt 0:02:37]} Qb6 {[%emt 0:00:08]} 22. Nxe6 {[%emt 0:00:42]} Qxe6 {[%emt 0:00:13]} (22... fxe6 $11 23. Rhf1 Qc7) 23. Qf5 $14 {[%emt 0:00:30]} Qb6 {[%emt 0:04:22]} (23... Qe7 $14) 24. Rhf1 $18 {[%emt 0:01:02]} Rf8 {[%emt 0:00:54]} 25. Kc2 {[%emt 0:12:47]} Qb5 {[%emt 0:05:59] [#]} (25... Rdd8 $16 26. d3 Qc6) 26. e5 $2 $40 {[%emt 0:04:24][%mdl 128] White has strong attack.} (26. Bxg7 $1 $18 {[%mdl 512] is more deadly. White wants to mate with Qg5.} Rd7 {[#]} 27. e5 $1) 26... c4 $2 {[%emt 0:00:23]} (26... Rd5 $16 {was necessary.}) 27. e6 {[%emt 0:01:43][%cal Be5e6,Be6f7][%mdl 32] Dancing on a razor blade.} Rd5 $2 {[%emt 0:06:53]} (27... Qxf5 $18 28. gxf5 (28. Rxf5 fxe6 29. Rxf8+ Bxf8 $18) 28... b5) 28. exf7+ {[%emt 0:00:23]} Kh8 {[%emt 0:00:05] [#]} 29. Bxg7+ $1 {[%emt 0:00:13][%mdl 512] Weighted Error Value: White=1.02/Black=0.94} 1-0